[Event "RUS-chT Men Rapid 2019"]
[Site "Sochi"]
[Date "2019.10.18"]
[Round "3.14"]
[White "Shariyazdanov, Andrey"]
[Black "Lugovskoy, Maxim"]
[Result "0-1"]
[ECO "D31"]
[WhiteElo "2519"]
[BlackElo "2436"]
[Annotator "ChessBase"]
[PlyCount "212"]
[EventDate "2019.10.18"]
[EventType "swiss"]
[EventCountry "RUS"]
[SourceTitle "playchess.com"]
[Source "ChessBase"]
[SourceQuality "1"]
[TimeControl "900+10"]

1. c4 {[%emt 0:00:00]} e6 {[%emt 0:00:00]} 2. d4 {[%emt 0:00:06]} d5 {[%emt 0:00:00]} 3. Nc3 {[%emt 0:00:04]} a6 {[%emt 0:00:00]} 4. cxd5 {[%emt 0:00:20]} exd5 {[%emt 0:00:00]} 5. Bf4 {[%emt 0:00:01]} c6 {[%emt 0:00:00]} 6. e3 {[%emt 0:00:02]} Bd6 {[%emt 0:00:00]} 7. Bg3 {[%emt 0:00:20]} Nf6 {[%emt 0:00:39]} 8. Bd3 {[%emt 0:00:06]} Qe7 {[%emt 0:00:19]} 9. Bh4 {[%emt 0:00:21]} Nbd7 {[%emt 0:00:09]} 10. Nf3 {[%emt 0:00:12]} Nf8 {[%emt 0:00:02]} 11. O-O {[%emt 0:00:09]} Ng6 {[%emt 0:00:01]} 12. Bxf6 {[%emt 0:00:12]} Qxf6 {[%emt 0:01:05]} 13. e4 {[%emt 0:00:02]} Bg4 {[%emt 0:00:55]} 14. e5 {[%emt 0:06:02]} Bxf3 {[%emt 0:00:05]} 15. exf6 {[%emt 0:00:32]} Bxd1 {[%emt 0:00:03]} 16. fxg7 {[%emt 0:00:02]} Rg8 {[%emt 0:00:01]} 17. Re1+ {[%emt 0:00:05]} Kd8 {[%emt 0:00:20]} 18. Nxd1 {[%emt 0:00:19]} Nf4 {[%emt 0:01:41]} 19. Bf5 {[%emt 0:00:22]} Rxg7 {[%emt 0:00:03]} 20. g3 {[%emt 0:00:21]} Rg5 {[%emt 0:02:15]} 21. Ne3 {[%emt 0:00:29]} Bb4 {[%emt 0:00:02]} 22. Red1 {[%emt 0:00:07]} h5 {[%emt 0:00:08]} 23. Kf1 {[%emt 0:02:10]} Ne6 {[%emt 0:00:03]} 24. Rd3 {[%emt 0:00:58]} Kc7 {[%emt 0:00:23]} 25. h4 {[%emt 0:00:33]} Rgg8 {[%emt 0:00:16]} 26. a3 {[%emt 0:00:01]} Ba5 {[%emt 0:00:11]} 27. Bxe6 {[%emt 0:00:48]} fxe6 {[%emt 0:00:02]} 28. Ng2 {[%emt 0:00:01]} Kd7 {[%emt 0:00:17]} 29. Nf4 {[%emt 0:00:11]} Bc7 {[%emt 0:00:01]} 30. Nxh5 {[%emt 0:00:57]} Raf8 {[%emt 0:00:01]} 31. Rb3 {[%emt 0:02:05]} b5 {[%emt 0:00:05]} 32. Rc1 {[%emt 0:00:02]} Rf5 {[%emt 0:00:11]} 33. Rbc3 {[%emt 0:00:01]} Rxh5 {[%emt 0:00:17]} 34. Rxc6 {[%emt 0:00:01]} Bb8 {[%emt 0:01:41]} 35. Rxa6 {[%emt 0:00:02]} Rf5 {[%emt 0:00:30]} 36. Kg2 {[%emt 0:00:27]} e5 {[%emt 0:00:03]} 37. dxe5 {[%emt 0:01:35]} Rxe5 {[%emt 0:00:09]} 38. Rb6 {[%emt 0:00:58]} Re2 {[%emt 0:00:40]} 39. Rxb5 {[%emt 0:00:03]} Bxg3 {[%emt 0:00:33]} 40. Rxd5+ {[%emt 0:00:01]} Bd6+ {[%emt 0:00:01]} 41. Kf1 {[%emt 0:00:02]} Rxb2 {[%emt 0:00:03]} 42. Rcd1 {[%emt 0:00:02]} Rg6 {[%emt 0:00:21]} 43. a4 {[%emt 0:00:00]} Ra2 {[%emt 0:00:05]} 44. a5 {[%emt 0:00:04]} Rf6 {[%emt 0:00:01]} 45. R1d2 {[%emt 0:00:01]} Ra1+ {[%emt 0:00:20]} 46. Kg2 {[%emt 0:00:00]} Kc6 {[%emt 0:00:01]} 47. h5 {[%emt 0:00:01]} Bc5 {[%emt 0:00:11]} 48. Rg5 {[%emt 0:00:00]} Rxa5 {[%emt 0:01:21]} 49. Rg6 {[%emt 0:00:41]} Rxg6+ {[%emt 0:00:01]} 50. hxg6 {[%emt 0:00:00]} Bd6 {[%emt 0:00:02]} 51. f4 {[%emt 0:00:30]} Bxf4 {[%emt 0:00:13]} 52. Rd8 {[%emt 0:00:15]} Rg5+ {[%emt 0:01:27]} 53. Kf3 {[%emt 0:00:03]} Bd6 {[%emt 0:01:00]} 54. Rg8 {[%emt 0:00:03]} Kd7 {[%emt 0:00:14]} 55. Ke4 {[%emt 0:00:25]} Ke7 {[%emt 0:00:41]} 56. g7 {[%emt 0:00:09]} Be5 {[%emt 0:00:32]} 57. Ra8 {[%emt 0:00:06]} Bxg7 {[%emt 0:00:04]} 58. Ra7+ {[%emt 0:00:14]} Kf8 {[%emt 0:00:08]} 59. Rb7 {[%emt 0:00:02]} Bf6 {[%emt 0:00:33]} 60. Rd7 {[%emt 0:00:05]} Be7 {[%emt 0:00:04]} 61. Rd5 {[%emt 0:00:06]} Rg1 {[%emt 0:00:06]} 62. Rf5+ {[%emt 0:00:05]} Kg7 {[%emt 0:00:23]} 63. Kd5 {[%emt 0:00:05]} Bf6 {[%emt 0:00:03]} 64. Rf3 {[%emt 0:00:04]} Rd1+ {[%emt 0:00:03]} 65. Ke6 {[%emt 0:00:05]} Re1+ {[%emt 0:00:06]} 66. Kd5 {[%emt 0:00:04]} Kf7 {[%emt 0:00:32]} 67. Rb3 {[%emt 0:00:02]} Re5+ {[%emt 0:00:09]} 68. Kd6 {[%emt 0:00:07]} Ra5 {[%emt 0:00:45]} 69. Rf3 {[%emt 0:00:16]} Ra4 {[%emt 0:00:21]} 70. Re3 {[%emt 0:00:14]} Rd4+ {[%emt 0:00:02]} 71. Kc6 {[%emt 0:00:03]} Kg6 {[%emt 0:00:05]} 72. Rf3 {[%emt 0:00:03]} Kg5 {[%emt 0:00:31]} 73. Kc5 {[%emt 0:00:07]} Rd8 {[%emt 0:00:04]} 74. Rf1 {[%emt 0:00:04]} Be5 {[%emt 0:00:01]} 75. Rf7 {[%emt 0:00:25]} Bf6 {[%emt 0:00:02]} 76. Kc6 {[%emt 0:00:02]} Rd1 {[%emt 0:00:05]} 77. Kc5 {[%emt 0:00:21]} Kf5 {[%emt 0:00:02]} 78. Rh7 {[%emt 0:00:05]} Ke4 {[%emt 0:00:11]} 79. Kc6 {[%emt 0:00:35]} Be5 {[%emt 0:00:18]} 80. Rh4+ {[%emt 0:00:07]} Bf4 {[%emt 0:00:01]} 81. Rh5 {[%emt 0:00:00]} Rd6+ {[%emt 0:00:37]} 82. Kc5 {[%emt 0:00:05]} Rf6 {[%emt 0:00:19]} 83. Rh4 {[%emt 0:00:05]} Rg6 {[%emt 0:00:01]} 84. Rh8 {[%emt 0:00:12]} Be3+ {[%emt 0:00:02]} 85. Kb5 {[%emt 0:00:09]} Bd4 {[%emt 0:01:05]} 86. Rd8 {[%emt 0:00:06]} Rb6+ {[%emt 0:00:03]} 87. Kc4 {[%emt 0:00:05]} Rc6+ {[%emt 0:00:01]} 88. Kb5 {[%emt 0:00:04]} Rc1 {[%emt 0:00:21]} 89. Rg8 {[%emt 0:00:11]} Kd3 {[%emt 0:00:10]} 90. Rg3+ {[%emt 0:00:18]} Be3 {[%emt 0:00:01]} 91. Rg8 {[%emt 0:00:12]} Rc5+ {[%emt 0:00:21]} 92. Kb4 {[%emt 0:00:01]} Rd5 {[%emt 0:00:01]} 93. Rg3 {[%emt 0:00:12]} Rf5 {[%emt 0:00:06]} 94. Rh3 {[%emt 0:00:06]} Rg5 {[%emt 0:00:01]} 95. Rf3 {[%emt 0:00:06]} Rh5 {[%emt 0:00:16]} 96. Rg3 {[%emt 0:00:05]} Rh6 {[%emt 0:00:01]} 97. Kb5 {[%emt 0:00:26]} Rb6+ {[%emt 0:00:02]} 98. Ka5 {[%emt 0:00:01]} Rb1 {[%emt 0:00:07]} 99. Rh3 {[%emt 0:00:14]} Kd4 {[%emt 0:00:00]} 100. Rh4+ {[%emt 0:00:05]} Kc5 {[%emt 0:00:00]} 101. Rh5+ {[%emt 0:00:01]} Kc4 {[%emt 0:00:00]} 102. Ka6 {[%emt 0:00:45]} Rb6+ {[%emt 0:00:00]} 103. Ka5 {[%emt 0:00:01]} Rf6 {[%emt 0:00:36]} 104. Rh4+ {[%emt 0:00:05]} Bd4 {[%emt 0:00:07]} 105. Rg4 {[%emt 0:00:06]} Rh6 {[%emt 0:00:00]} 106. Rf4 {[%emt 0:00:08]} Rh7 {[%emt 0:00:06]} 0-1

[Event "RUS-chT Men Rapid 2019"]
[Site "Sochi"]
[Date "2019.10.18"]
[Round "3.15"]
[White "Vastrukhin, Oleg"]
[Black "Ulybin, Mikhail"]
[Result "1-0"]
[ECO "A36"]
[WhiteElo "2428"]
[BlackElo "2455"]
[Annotator "ChessBase"]
[PlyCount "113"]
[EventDate "2019.10.18"]
[EventType "swiss"]
[EventCountry "RUS"]
[SourceTitle "playchess.com"]
[Source "ChessBase"]
[SourceQuality "1"]
[TimeControl "900+10"]

1. g3 {[%emt 0:00:00]} c5 {[%emt 0:00:00]} 2. Bg2 {[%emt 0:00:00]} Nc6 {[%emt 0:00:01]} 3. c4 {[%emt 0:00:00]} g6 {[%emt 0:00:05]} 4. Nc3 {[%emt 0:00:00]} Bg7 {[%emt 0:00:04]} 5. e3 {[%emt 0:00:00]} e5 {[%emt 0:00:29]} 6. Nge2 {[%emt 0:00:04]} Nge7 {[%emt 0:00:04]} 7. O-O {[%emt 0:00:04]} O-O {[%emt 0:00:10]} 8. d3 {[%emt 0:00:03]} d6 {[%emt 0:00:16]} 9. a3 {[%emt 0:00:03]} a5 {[%emt 0:00:11]} 10. Bd2 {[%emt 0:00:04]} Be6 {[%emt 0:00:53]} 11. Nd5 {[%emt 0:00:03]} Rb8 {[%emt 0:00:10]} 12. Nec3 {[%emt 0:00:05]} Qd7 {[%emt 0:00:49]} 13. Qa4 {[%emt 0:00:03]} Rfd8 {[%emt 0:03:05]} 14. Rfb1 {[%emt 0:02:26]} Bf5 {[%emt 0:03:26]} 15. e4 {[%emt 0:01:02]} Bh3 {[%emt 0:05:39]} 16. Bg5 {[%emt 0:00:31]} Bxg2 {[%emt 0:00:34]} 17. Kxg2 {[%emt 0:00:22]} Nxd5 {[%emt 0:01:13]} 18. cxd5 {[%emt 0:01:02]} Ne7 {[%emt 0:00:16]} 19. Qxd7 {[%emt 0:00:19]} Rxd7 {[%emt 0:00:03]} 20. b4 {[%emt 0:00:44]} axb4 {[%emt 0:00:30]} 21. axb4 {[%emt 0:00:02]} cxb4 {[%emt 0:00:07]} 22. Rxb4 {[%emt 0:00:01]} Nc8 {[%emt 0:00:10]} 23. Nb5 {[%emt 0:00:19]} f6 {[%emt 0:00:15]} 24. Be3 {[%emt 0:00:02]} Kf7 {[%emt 0:00:07]} 25. Rc4 {[%emt 0:00:16]} Ne7 {[%emt 0:00:19]} 26. Bb6 {[%emt 0:00:13]} Re8 {[%emt 0:00:11]} 27. Rc7 {[%emt 0:00:12]} Red8 {[%emt 0:00:10]} 28. Ra7 {[%emt 0:00:48]} Nc8 {[%emt 0:00:05]} 29. Raxb7 {[%emt 0:00:03]} Nxb6 {[%emt 0:00:05]} 30. Rxb6 {[%emt 0:00:02]} Rxc7 {[%emt 0:00:15]} 31. Nxc7 {[%emt 0:00:02]} Rd7 {[%emt 0:00:07]} 32. Nb5 {[%emt 0:00:17]} Bf8 {[%emt 0:00:18]} 33. f4 {[%emt 0:00:04]} Be7 {[%emt 0:00:06]} 34. Kf3 {[%emt 0:00:02]} h5 {[%emt 0:00:04]} 35. f5 {[%emt 0:00:57]} Kg7 {[%emt 0:00:17]} 36. g4 {[%emt 0:00:07]} Kh6 {[%emt 0:00:09]} 37. h4 {[%emt 0:00:48]} g5 {[%emt 0:00:10]} 38. hxg5+ {[%emt 0:00:07]} Kxg5 {[%emt 0:00:08]} 39. gxh5 {[%emt 0:00:02]} Kxh5 {[%emt 0:00:02]} 40. Rc6 {[%emt 0:00:18]} Kg5 {[%emt 0:00:09]} 41. Nc7 {[%emt 0:00:41]} Kh6 {[%emt 0:00:10]} 42. Rc2 {[%emt 0:00:10]} Kg7 {[%emt 0:00:11]} 43. Ne6+ {[%emt 0:00:07]} Kf7 {[%emt 0:00:05]} 44. Rh2 {[%emt 0:00:04]} Ra7 {[%emt 0:00:08]} 45. Rh7+ {[%emt 0:00:55]} Ke8 {[%emt 0:00:03]} 46. Rh8+ {[%emt 0:00:06]} Kf7 {[%emt 0:00:11]} 47. Nd8+ {[%emt 0:00:14]} Kg7 {[%emt 0:00:04]} 48. Re8 {[%emt 0:00:42]} Rd7 {[%emt 0:00:21]} 49. Nc6 {[%emt 0:00:06]} Bf8 {[%emt 0:00:02]} 50. Rb8 {[%emt 0:00:19]} Kf7 {[%emt 0:00:33]} 51. Nd8+ {[%emt 0:00:12]} Ke7 {[%emt 0:00:02]} 52. Ne6 {[%emt 0:00:05]} Bh6 {[%emt 0:00:03]} 53. Kg4 {[%emt 0:00:02]} Bd2 {[%emt 0:00:13]} 54. Kh5 {[%emt 0:00:04]} Ra7 {[%emt 0:00:11]} 55. Kg6 {[%emt 0:00:05]} Be1 {[%emt 0:00:24]} 56. Rb1 {[%emt 0:00:11]} Bd2 {[%emt 0:00:15]} 57. Rh1 {[%emt 0:00:05]} 1-0

[Event "RUS-chT Men Rapid 2019"]
[Site "Sochi"]
[Date "2019.10.18"]
[Round "3.16"]
[White "Pingin, Artem"]
[Black "Utnasunov, Alexander"]
[Result "0-1"]
[ECO "B72"]
[WhiteElo "2048"]
[BlackElo "2442"]
[Annotator "NA"]
[PlyCount "100"]
[EventDate "2019.10.18"]
[EventType "swiss"]
[EventCountry "RUS"]
[SourceTitle "playchess.com"]
[Source "ChessBase"]
[SourceQuality "1"]
[TimeControl "900+10"]

1. e4 {[%emt 0:00:00]} c5 {[%emt 0:00:00]} 2. Nf3 {[%emt 0:00:00]} d6 {[%emt 0:00:00]} 3. d4 {[%emt 0:00:00]} cxd4 {[%emt 0:00:00]} 4. Nxd4 {[%emt 0:00:00]} Nf6 {[%emt 0:00:00]} 5. Nc3 g6 {[%emt 0:00:01]} 6. Be3 {[%emt 0:00:10]} a6 {[%emt 0:00:02]} 7. f3 {[%emt 0:00:01]} b5 {[%emt 0:00:02]} 8. Qd2 {[%emt 0:00:04]} Bb7 {[%emt 0:00:01]} 9. O-O-O {[%emt 0:00:54]} Nbd7 {[%emt 0:00:02]} 10. a3 {[%emt 0:01:12]} Rc8 {[%emt 0:00:04]} 11. Kb1 {[%emt 0:00:06]} Bg7 {[%emt 0:00:04]} 12. g4 {[%emt 0:00:09]} Ne5 {[%emt 0:00:05]} 13. h4 {[%emt 0:00:30]} Nxf3 {[%emt 0:01:05]} 14. Nxf3 {[%emt 0:00:17]} Nxe4 {[%emt 0:00:02]} 15. Nxe4 {[%emt 0:00:22]} Bxe4 {[%emt 0:00:02]} 16. Bg2 {[%emt 0:00:47]} Rxc2 {[%emt 0:00:02]} 17. Qxc2 {[%emt 0:00:02]} Bxc2+ {[%emt 0:00:02]} 18. Kxc2 {[%emt 0:00:02]} Qc8+ {[%emt 0:00:01]} 19. Kd2 {[%emt 0:01:08]} Qxg4 {[%emt 0:01:16]} 20. Rhg1 {[%emt 0:00:01]} O-O {[%emt 0:00:20]} 21. Ke2 {[%emt 0:02:12]} Bxb2 {[%emt 0:00:45]} 22. Kf2 {[%emt 0:00:20]} Rc8 {[%emt 0:00:18]} 23. Bf1 {[%emt 0:01:15]} Rc2+ {[%emt 0:00:42]} 24. Rd2 {[%emt 0:00:22]} Rxd2+ {[%emt 0:00:44]} 25. Bxd2 {[%emt 0:00:03]} Bd4+ {[%emt 0:00:43]} 26. Nxd4 {[%emt 0:01:29]} Qxd4+ {[%emt 0:00:02]} 27. Be3 {[%emt 0:00:02]} Qxh4+ {[%emt 0:00:01]} 28. Kf3 {[%emt 0:00:14]} Qf6+ {[%emt 0:00:22]} 29. Kg3 {[%emt 0:00:13]} Qe5+ {[%emt 0:00:05]} 30. Kf2 {[%emt 0:00:01]} Qb2+ {[%emt 0:00:09]} 31. Be2 {[%emt 0:00:02]} f5 {[%emt 0:01:51]} 32. Rc1 {[%emt 0:00:40]} Kf7 {[%emt 0:00:15]} 33. Rc6 {[%emt 0:02:11]} Qxa3 {[%emt 0:00:42]} 34. Bf3 {[%emt 0:00:01]} Qa2+ {[%emt 0:00:05]} 35. Kg3 {[%emt 0:00:30]} e5 {[%emt 0:01:10]} 36. Bg5 {[%emt 0:00:32]} e4 {[%emt 0:00:02]} 37. Bd1 {[%emt 0:00:09]} Qb1 {[%emt 0:00:38]} 38. Rc1 {[%emt 0:00:23]} Qd3+ {[%emt 0:00:03]} 39. Kg2 {[%emt 0:00:14]} Ke6 {[%emt 0:00:35]} 40. Kf2 {[%emt 0:00:31]} Qh3 {[%emt 0:00:46]} 41. Bf4 {[%emt 0:00:36]} Qh4+ {[%emt 0:00:43]} 42. Bg3 {[%emt 0:00:01]} Qh6 {[%emt 0:00:04]} 43. Rc6 {[%emt 0:00:06]} Qd2+ {[%emt 0:00:02]} 44. Be2 {[%emt 0:00:06]} f4 {[%emt 0:00:03]} 45. Bh2 {[%emt 0:00:10]} e3+ {[%emt 0:01:13]} 46. Kf1 {[%emt 0:00:06]} f3 {[%emt 0:00:02]} 47. Rxd6+ {[%emt 0:00:16]} Qxd6 {[%emt 0:00:02]} 48. Bxd6 {[%emt 0:00:02]} fxe2+ {[%emt 0:00:01]} 49. Kxe2 {[%emt 0:00:01]} Kxd6 {[%emt 0:00:01]} 50. Kxe3 {[%emt 0:00:02]} Ke5 {Kd4+} 0-1

[Event "RUS-chT Men Rapid 2019"]
[Site "Sochi"]
[Date "2019.10.18"]
[Round "3.17"]
[White "Tsydypov, Zhamsaran"]
[Black "Yudin, Sergei"]
[Result "1/2-1/2"]
[ECO "B00"]
[WhiteElo "2553"]
[BlackElo "2497"]
[Annotator "ChessBase"]
[PlyCount "109"]
[EventDate "2019.10.18"]
[EventType "swiss"]
[EventCountry "RUS"]
[SourceTitle "playchess.com"]
[Source "ChessBase"]
[SourceQuality "1"]
[TimeControl "900+10"]

1. e4 {[%emt 0:00:00]} d6 {[%emt 0:00:00]} 2. d4 {[%emt 0:00:00]} Nf6 {[%emt 0:00:00]} 3. f3 {[%emt 0:00:20]} c5 {[%emt 0:00:00]} 4. dxc5 {[%emt 0:00:15]} Qa5+ {[%emt 0:00:00]} 5. Nc3 {[%emt 0:00:12]} Qxc5 {[%emt 0:00:54]} 6. Qe2 {[%emt 0:00:24]} Nc6 {[%emt 0:00:22]} 7. Be3 {[%emt 0:00:04]} Nd4 {[%emt 0:01:31]} 8. Bxd4 {[%emt 0:00:06]} Qxd4 {[%emt 0:00:02]} 9. Qb5+ {[%emt 0:00:07]} Nd7 {[%emt 0:00:13]} 10. Nd5 {[%emt 0:00:48]} Kd8 {[%emt 0:00:02]} 11. Ne2 {[%emt 0:00:33]} Qc5 {[%emt 0:00:17]} 12. Qb3 {[%emt 0:00:46]} e6 {[%emt 0:00:17]} 13. Ndf4 {[%emt 0:00:13]} Be7 {[%emt 0:00:43]} 14. O-O-O {[%emt 0:00:13]} Qb6 {[%emt 0:01:35]} 15. Qc3 {[%emt 0:00:34]} Bf6 {[%emt 0:00:07]} 16. Qa3 {[%emt 0:00:03]} Qc5 {[%emt 0:00:05]} 17. Qxc5 {[%emt 0:00:22]} dxc5 {[%emt 0:00:06]} 18. Nh5 {[%emt 0:00:07]} Be5 {[%emt 0:01:20]} 19. f4 {[%emt 0:00:31]} g6 {[%emt 0:00:02]} 20. Nhg3 {[%emt 0:01:09]} Bg7 {[%emt 0:00:11]} 21. e5 {[%emt 0:00:03]} Ke7 {[%emt 0:02:06]} 22. Ne4 {[%emt 0:00:12]} b6 {[%emt 0:00:04]} 23. Nd6 {[%emt 0:00:21]} f6 {[%emt 0:00:31]} 24. exf6+ {[%emt 0:01:20]} Nxf6 {[%emt 0:00:03]} 25. Nxc8+ {[%emt 0:02:20]} Raxc8 {[%emt 0:00:02]} 26. Nc3 {[%emt 0:00:02]} Nh5 {[%emt 0:04:30]} 27. g3 {[%emt 0:00:11]} Bxc3 {[%emt 0:00:02]} 28. bxc3 {[%emt 0:00:02]} Rcd8 {[%emt 0:00:01]} 29. Bc4 {[%emt 0:01:41]} Rxd1+ {[%emt 0:00:57]} 30. Rxd1 {[%emt 0:00:03]} Ng7 {[%emt 0:00:02]} 31. Kb2 {[%emt 0:00:10]} Rd8 {[%emt 0:01:05]} 32. Rd3 {[%emt 0:03:37]} Rxd3 {[%emt 0:00:03]} 33. cxd3 {[%emt 0:00:10]} Nf5 {[%emt 0:00:08]} 34. Kb3 {[%emt 0:00:10]} Nd6 {[%emt 0:01:34]} 35. Ba6 {[%emt 0:00:17]} Kf6 {[%emt 0:00:27]} 36. d4 {[%emt 0:01:18]} Kf5 {[%emt 0:00:49]} 37. dxc5 {[%emt 0:00:28]} bxc5 {[%emt 0:00:02]} 38. Bd3+ {[%emt 0:00:16]} Kf6 {[%emt 0:00:12]} 39. Ka4 {[%emt 0:00:28]} e5 {[%emt 0:00:01]} 40. fxe5+ {[%emt 0:00:22]} Kxe5 {[%emt 0:00:02]} 41. Ka5 {[%emt 0:00:02]} Kd5 {[%emt 0:00:37]} 42. Ka6 {[%emt 0:01:03]} c4 {[%emt 0:00:07]} 43. Bc2 {[%emt 0:00:18]} Ne4 {[%emt 0:00:28]} 44. a4 {[%emt 0:00:05]} Nxc3 {[%emt 0:00:03]} 45. a5 {[%emt 0:00:01]} Kc5 {[%emt 0:00:11]} 46. Kxa7 {[%emt 0:00:02]} Nd5 {[%emt 0:00:06]} 47. Kb7 {[%emt 0:00:06]} Nc3 {[%emt 0:00:32]} 48. a6 {[%emt 0:00:04]} Nb5 {[%emt 0:00:01]} 49. a7 {[%emt 0:00:16]} Nxa7 {[%emt 0:00:01]} 50. Kxa7 {[%emt 0:00:01]} Kd4 {[%emt 0:00:03]} 51. Kb6 {[%emt 0:00:03]} Ke3 {[%emt 0:00:10]} 52. Kc5 {[%emt 0:00:26]} Kf2 {[%emt 0:00:01]} 53. Kxc4 {[%emt 0:00:33]} Kg2 {[%emt 0:00:02]} 54. g4 {[%emt 0:00:07]} Kxh2 {[%emt 0:00:03]} 55. Kd4 {[%emt 0:00:03]} 1/2-1/2

[Event "RUS-chT Men Rapid 2019"]
[Site "Sochi"]
[Date "2019.10.18"]
[Round "3.18"]
[White "Khegay, Dmitriy"]
[Black "Triapishko, Alexandr"]
[Result "1/2-1/2"]
[ECO "B13"]
[WhiteElo "2509"]
[BlackElo "2514"]
[Annotator "ChessBase"]
[PlyCount "97"]
[EventDate "2019.10.18"]
[EventType "swiss"]
[EventCountry "RUS"]
[SourceTitle "playchess.com"]
[Source "ChessBase"]
[SourceQuality "1"]
[TimeControl "900+10"]

1. e4 {[%emt 0:00:00]} c6 {[%emt 0:00:03]} 2. d4 {[%emt 0:00:00]} d5 {[%emt 0:00:01]} 3. exd5 {[%emt 0:00:00]} cxd5 {[%emt 0:00:01]} 4. Bd3 {[%emt 0:00:00]} Nf6 {[%emt 0:00:10]} 5. h3 {[%emt 0:00:00]} Nc6 {[%emt 0:00:06]} 6. c3 {[%emt 0:00:01]} g6 {[%emt 0:00:50]} 7. Nf3 {[%emt 0:00:02]} Bf5 {[%emt 0:00:09]} 8. Be2 {[%emt 0:00:02]} Qc7 {[%emt 0:00:50]} 9. O-O {[%emt 0:00:07]} Bg7 {[%emt 0:00:18]} 10. Be3 {[%emt 0:00:07]} O-O {[%emt 0:00:18]} 11. Re1 {[%emt 0:00:02]} Rfe8 {[%emt 0:00:44]} 12. Nbd2 {[%emt 0:00:02]} Rad8 {[%emt 0:02:19]} 13. Nf1 {[%emt 0:00:04]} Ne4 {[%emt 0:00:13]} 14. Qc1 {[%emt 0:00:26]} e5 {[%emt 0:01:20]} 15. dxe5 {[%emt 0:00:02]} Nxe5 {[%emt 0:00:02]} 16. Bf4 {[%emt 0:00:03]} Qb6 {[%emt 0:01:27]} 17. Ne3 {[%emt 0:01:07]} Nc6 {[%emt 0:02:39]} 18. Bd3 {[%emt 0:05:52]} d4 {[%emt 0:04:15]} 19. Nxf5 {[%emt 0:00:02]} gxf5 {[%emt 0:00:01]} 20. Bxe4 {[%emt 0:00:48]} fxe4 {[%emt 0:00:06]} 21. Nxd4 {[%emt 0:00:22]} Nxd4 {[%emt 0:00:03]} 22. cxd4 {[%emt 0:00:04]} Qxd4 {[%emt 0:00:17]} 23. Rb1 {[%emt 0:01:39]} Rc8 {[%emt 0:00:17]} 24. Qe3 {[%emt 0:00:01]} Qxe3 {[%emt 0:00:15]} 25. Bxe3 {[%emt 0:00:04]} Rc2 {[%emt 0:00:25]} 26. Rec1 {[%emt 0:01:12]} Rec8 {[%emt 0:00:20]} 27. Rxc2 {[%emt 0:02:13]} Rxc2 {[%emt 0:00:02]} 28. Bxa7 {[%emt 0:00:01]} Bxb2 {[%emt 0:00:36]} 29. g4 {[%emt 0:00:19]} Rc1+ {[%emt 0:00:52]} 30. Rxc1 {[%emt 0:00:01]} Bxc1 {[%emt 0:00:01]} 31. Bd4 {[%emt 0:00:36]} Kf8 {[%emt 0:00:38]} 32. Kg2 {[%emt 0:01:58]} Bf4 {[%emt 0:00:07]} 33. f3 {[%emt 0:01:36]} exf3+ {[%emt 0:00:03]} 34. Kxf3 {[%emt 0:00:01]} Bc1 {[%emt 0:00:19]} 35. Ke4 {[%emt 0:00:40]} Ke7 {[%emt 0:00:06]} 36. Kf5 {[%emt 0:00:00]} Ba3 {[%emt 0:00:22]} 37. h4 {[%emt 0:00:19]} Bb4 {[%emt 0:00:13]} 38. Bg7 {[%emt 0:00:40]} Ba3 {[%emt 0:00:12]} 39. g5 {[%emt 0:00:10]} Bb4 {[%emt 0:00:09]} 40. Bf6+ {[%emt 0:00:15]} Kd7 {[%emt 0:00:08]} 41. Be5 {[%emt 0:00:31]} Ke7 {[%emt 0:00:04]} 42. Bf6+ {[%emt 0:00:04]} Kd7 {[%emt 0:00:01]} 43. Ke5 {[%emt 0:00:05]} Be1 {[%emt 0:00:06]} 44. h5 {[%emt 0:00:01]} Bd2 {[%emt 0:00:15]} 45. Kd5 {[%emt 0:00:05]} Be3 {[%emt 0:00:06]} 46. Ke5 {[%emt 0:00:09]} Bc1 {[%emt 0:00:06]} 47. Kf5 {[%emt 0:00:02]} Ba3 {[%emt 0:00:13]} 48. Bd4 {[%emt 0:00:17]} Be7 {[%emt 0:00:09]} 49. Bf6 {[%emt 0:00:14]} 1/2-1/2

[Event "RUS-chT Men Rapid 2019"]
[Site "Sochi"]
[Date "2019.10.18"]
[Round "3.19"]
[White "Moiseenko, Vadim"]
[Black "Pogromsky, Mikhail"]
[Result "1-0"]
[ECO "B02"]
[WhiteElo "2532"]
[BlackElo "2411"]
[Annotator "ChessBase"]
[PlyCount "71"]
[EventDate "2019.10.18"]
[EventType "swiss"]
[EventCountry "RUS"]
[SourceTitle "playchess.com"]
[Source "ChessBase"]
[SourceQuality "1"]
[TimeControl "900+10"]

1. e4 {[%emt 0:00:00]} Nf6 {[%emt 0:00:06]} 2. Nc3 {[%emt 0:00:00]} d5 {[%emt 0:00:01]} 3. e5 {[%emt 0:00:02]} Nfd7 {[%emt 0:00:02]} 4. d4 {[%emt 0:00:33]} c5 {[%emt 0:00:01]} 5. f4 {[%emt 0:00:26]} cxd4 {[%emt 0:00:05]} 6. Qxd4 {[%emt 0:00:27]} e6 {[%emt 0:00:08]} 7. Qf2 {[%emt 0:00:01]} Nc6 {[%emt 0:02:22]} 8. Nf3 {[%emt 0:00:14]} a6 {[%emt 0:00:27]} 9. Be3 {[%emt 0:00:13]} Bb4 {[%emt 0:00:47]} 10. Bd3 {[%emt 0:00:23]} Qe7 {[%emt 0:01:02]} 11. O-O {[%emt 0:00:45]} Bc5 {[%emt 0:00:13]} 12. Kh1 {[%emt 0:01:03]} Bxe3 {[%emt 0:00:49]} 13. Qxe3 {[%emt 0:00:01]} Qb4 {[%emt 0:00:56]} 14. a3 {[%emt 0:00:40]} Qc5 {[%emt 0:00:10]} 15. Qe1 {[%emt 0:00:21]} Nd4 {[%emt 0:01:54]} 16. f5 {[%emt 0:01:59]} Nxf3 {[%emt 0:00:44]} 17. Rxf3 {[%emt 0:00:04]} Qd4 {[%emt 0:00:15]} 18. fxe6 {[%emt 0:01:57]} fxe6 {[%emt 0:00:02]} 19. Rd1 {[%emt 0:00:09]} Kd8 {[%emt 0:01:35]} 20. Bxa6 {[%emt 0:00:12]} Qxe5 {[%emt 0:00:10]} 21. Re3 {[%emt 0:00:21]} Qf4 {[%emt 0:02:23]} 22. Bb5 {[%emt 0:00:06]} Nf6 {[%emt 0:00:16]} 23. Rxe6 {[%emt 0:02:09]} Bxe6 {[%emt 0:00:03]} 24. Qxe6 {[%emt 0:00:01]} Kc7 {[%emt 0:00:23]} 25. Qe7+ {[%emt 0:01:11]} Kb6 {[%emt 0:00:25]} 26. Rf1 {[%emt 0:00:02]} Qd4 {[%emt 0:01:25]} 27. Qd6+ {[%emt 0:00:40]} Ka7 {[%emt 0:00:02]} 28. Bd3 {[%emt 0:00:10]} Qb6 {[%emt 0:00:22]} 29. Nb5+ {[%emt 0:00:21]} Ka6 {[%emt 0:00:01]} 30. Qb4 {[%emt 0:02:05]} Rac8 {[%emt 0:00:52]} 31. Rf4 {[%emt 0:00:13]} Rc4 {[%emt 0:00:49]} 32. Bxc4 {[%emt 0:00:56]} dxc4 {[%emt 0:00:02]} 33. Rf5 {[%emt 0:00:29]} Qa5 {[%emt 0:01:16]} 34. Nc7+ {[%emt 0:00:12]} Qxc7 {[%emt 0:00:05]} 35. Qa4+ {[%emt 0:00:01]} Kb6 {[%emt 0:00:01]} 36. Qa5+ {[%emt 0:00:00]} 1-0